[Event "Late-Titled-Tuesday-Blitz-June-18-2024"]
[Site "Chess.com"]
[Date "2024.06.18"]
[Round "7"]
[White "Lupul_Cenusiu"]
[Black "vesalhamedinia"]
[Result "0-1"]
[WhiteElo "2660"]
[BlackElo "2501"]
[TimeControl "180+1"]
[EndTime "15:17:32 PDT"]
[Termination "vesalhamedinia won on time"]

1. e4 {[%clk 0:03:00.9]} 1... c5 {[%clk 0:03:00.3]} 2. Nc3 {[%clk 0:02:54.4]}
2... Nc6 {[%clk 0:03:00.1]} 3. Bb5 {[%clk 0:02:54.8]} 3... g6 {[%clk 0:03:00.3]}
4. Bxc6 {[%clk 0:02:53.2]} 4... dxc6 {[%clk 0:03:01.2]} 5. f4 {[%clk 0:02:53.3]}
5... Bg7 {[%clk 0:03:00.8]} 6. Nf3 {[%clk 0:02:53.7]} 6... Nf6 {[%clk
0:03:01.1]} 7. O-O {[%clk 0:02:53.3]} 7... Bg4 {[%clk 0:02:58.6]} 8. d3 {[%clk
0:02:53.2]} 8... b5 {[%clk 0:02:57.5]} 9. Be3 {[%clk 0:02:48.6]} 9... c4 {[%clk
0:02:56]} 10. e5 {[%clk 0:02:38]} 10... Nd5 {[%clk 0:02:54.2]} 11. Nxd5 {[%clk
0:02:37.2]} 11... cxd5 {[%clk 0:02:52.4]} 12. h3 {[%clk 0:02:29]} 12... Bxf3
{[%clk 0:02:46.3]} 13. Qxf3 {[%clk 0:02:29.9]} 13... e6 {[%clk 0:02:37.2]} 14.
Bc5 {[%clk 0:02:25]} 14... Bf8 {[%clk 0:02:31.7]} 15. Bxf8 {[%clk 0:02:20.8]}
15... Kxf8 {[%clk 0:02:32.6]} 16. g4 {[%clk 0:01:27.2]} 16... Qb6+ {[%clk
0:02:26.4]} 17. Kg2 {[%clk 0:01:26.9]} 17... cxd3 {[%clk 0:02:24.7]} 18. f5
{[%clk 0:01:20.5]} 18... gxf5 {[%clk 0:02:10.7]} 19. gxf5 {[%clk 0:01:13.9]}
19... Rg8+ {[%clk 0:02:10.8]} 20. Kh1 {[%clk 0:01:13.9]} 20... dxc2 {[%clk
0:02:06.7]} 21. fxe6 {[%clk 0:01:07.1]} 21... Qxe6 {[%clk 0:02:07.6]} 22. Rac1
{[%clk 0:00:53.5]} 22... Rc8 {[%clk 0:02:06.4]} 23. Qe3 {[%clk 0:00:33.1]} 23...
d4 {[%clk 0:02:00.3]} 24. Qa3+ {[%clk 0:00:07.9]} 24... Ke8 {[%clk 0:01:56.8]}
25. Rf3 {[%clk 0:00:01.9]} 25... Qg6 {[%clk 0:01:48.3]} 0-1

[Event "Late-Titled-Tuesday-Blitz-June-18-2024"]
[Site "Chess.com"]
[Date "2024.06.18"]
[Round "7"]
[White "yobdc"]
[Black "AlexOstrovskiy"]
[Result "0-1"]
[WhiteElo "2567"]
[BlackElo "2727"]
[TimeControl "180+1"]
[EndTime "15:17:40 PDT"]
[Termination "AlexOstrovskiy won by resignation"]

1. e4 {[%clk 0:03:00.9]} 1... d5 {[%clk 0:02:56.5]} 2. exd5 {[%clk 0:03:00.8]}
2... Nf6 {[%clk 0:02:57]} 3. c4 {[%clk 0:02:59.4]} 3... e6 {[%clk 0:02:55.4]} 4.
d4 {[%clk 0:02:56.2]} 4... exd5 {[%clk 0:02:53.2]} 5. Nc3 {[%clk 0:02:56.5]}
5... Bb4 {[%clk 0:02:53.1]} 6. Nf3 {[%clk 0:02:55.5]} 6... O-O {[%clk
0:02:52.8]} 7. Be2 {[%clk 0:02:55.7]} 7... Nc6 {[%clk 0:02:51.6]} 8. h3 {[%clk
0:02:52.2]} 8... dxc4 {[%clk 0:02:51.3]} 9. Bxc4 {[%clk 0:02:49.1]} 9... Re8+
{[%clk 0:02:48.6]} 10. Be3 {[%clk 0:02:49.1]} 10... Na5 {[%clk 0:02:33.7]} 11.
Be2 {[%clk 0:02:31.2]} 11... Nd5 {[%clk 0:02:33.4]} 12. Qd2 {[%clk 0:02:28.6]}
12... Qe7 {[%clk 0:02:23.1]} 13. Ne5 {[%clk 0:02:11.4]} 13... f6 {[%clk
0:02:10.9]} 14. Nd3 {[%clk 0:01:58.4]} 14... Nc4 {[%clk 0:01:53.2]} 15. Qc2
{[%clk 0:01:23.9]} 15... Bxc3+ {[%clk 0:01:37.8]} 16. bxc3 {[%clk 0:01:23.6]}
16... Ncxe3 {[%clk 0:01:32.5]} 17. fxe3 {[%clk 0:01:24.5]} 17... Nxe3 {[%clk
0:01:33.1]} 18. Qd2 {[%clk 0:01:08.4]} 18... Bf5 {[%clk 0:01:17]} 19. Kf2 {[%clk
0:01:03.3]} 19... Nc4 {[%clk 0:01:14.6]} 20. Qd1 {[%clk 0:00:17.6]} 20... Qe3+
{[%clk 0:01:14.2]} 0-1

[Event "Late-Titled-Tuesday-Blitz-June-18-2024"]
[Site "Chess.com"]
[Date "2024.06.18"]
[Round "7"]
[White "Rashad_Zeynalli"]
[Black "Artem_Koval"]
[Result "0-1"]
[WhiteElo "2720"]
[BlackElo "2582"]
[TimeControl "180+1"]
[EndTime "15:17:42 PDT"]
[Termination "Artem_Koval won by checkmate"]

1. d4 {[%clk 0:03:00.9]} 1... d5 {[%clk 0:02:59.8]} 2. Bf4 {[%clk 0:03:00.5]}
2... c5 {[%clk 0:02:59.5]} 3. e3 {[%clk 0:03:00.2]} 3... Nc6 {[%clk 0:02:59]} 4.
Nf3 {[%clk 0:02:59.5]} 4... Nf6 {[%clk 0:02:56.2]} 5. Nbd2 {[%clk 0:02:59.8]}
5... cxd4 {[%clk 0:02:55.1]} 6. exd4 {[%clk 0:03:00.6]} 6... Bf5 {[%clk
0:02:55.1]} 7. Bb5 {[%clk 0:03:00.2]} 7... e6 {[%clk 0:02:52.8]} 8. Ne5 {[%clk
0:02:58.3]} 8... Qb6 {[%clk 0:02:48.4]} 9. Qe2 {[%clk 0:02:58.6]} 9... Be7
{[%clk 0:02:35.2]} 10. c3 {[%clk 0:02:44]} 10... O-O {[%clk 0:02:33.8]} 11. Bxc6
{[%clk 0:02:42.3]} 11... bxc6 {[%clk 0:02:33.4]} 12. Nb3 {[%clk 0:02:35]} 12...
a5 {[%clk 0:02:25.7]} 13. g4 {[%clk 0:02:32.6]} 13... Bg6 {[%clk 0:02:17.6]} 14.
h4 {[%clk 0:02:27.7]} 14... a4 {[%clk 0:02:13.2]} 15. Nc1 {[%clk 0:02:25.8]}
15... h5 {[%clk 0:01:56.7]} 16. Nxg6 {[%clk 0:02:22]} 16... fxg6 {[%clk
0:01:57]} 17. Qxe6+ {[%clk 0:02:22.5]} 17... Kh7 {[%clk 0:01:56.5]} 18. Nd3
{[%clk 0:02:10.6]} 18... Nxg4 {[%clk 0:01:55.1]} 19. O-O-O {[%clk 0:02:06.6]}
19... Rae8 {[%clk 0:01:33.3]} 20. Rde1 {[%clk 0:02:06]} 20... a3 {[%clk
0:01:27.3]} 21. b4 {[%clk 0:02:05]} 21... Bxb4 {[%clk 0:01:23.9]} 22. Qd7 {[%clk
0:01:49.7]} 22... Rxe1+ {[%clk 0:01:16.3]} 23. Rxe1 {[%clk 0:01:50.6]} 23...
Bxc3 {[%clk 0:01:13.5]} 24. Re7 {[%clk 0:01:48.6]} 24... Bxd4 {[%clk 0:00:56.5]}
25. Ne5 {[%clk 0:01:37.7]} 25... Bxe5 {[%clk 0:00:43.1]} 26. Bxe5 {[%clk
0:01:37.1]} 26... Qc5+ {[%clk 0:00:34.9]} 27. Kb1 {[%clk 0:01:23.9]} 27... Qb4+
{[%clk 0:00:33]} 28. Kc2 {[%clk 0:01:18]} 28... Rxf2+ {[%clk 0:00:32.1]} 29. Kd3
{[%clk 0:01:17.1]} 29... Qc4# {[%clk 0:00:32.2]} 0-1

[Event "Late-Titled-Tuesday-Blitz-June-18-2024"]
[Site "Chess.com"]
[Date "2024.06.18"]
[Round "7"]
[White "Viktor_Poddubnyi"]
[Black "kleber2007"]
[Result "0-1"]
[WhiteElo "2336"]
[BlackElo "2472"]
[TimeControl "180+1"]
[EndTime "15:17:46 PDT"]
[Termination "kleber2007 won by resignation"]

1. e4 {[%clk 0:02:59.8]} 1... c5 {[%clk 0:02:55]} 2. Nf3 {[%clk 0:02:59.1]} 2...
d6 {[%clk 0:02:55.1]} 3. d4 {[%clk 0:02:59.4]} 3... cxd4 {[%clk 0:02:56]} 4.
Nxd4 {[%clk 0:03:00.1]} 4... Nf6 {[%clk 0:02:56.6]} 5. Nc3 {[%clk 0:03:00.1]}
5... a6 {[%clk 0:02:56.9]} 6. Bg5 {[%clk 0:03:00.5]} 6... e6 {[%clk 0:02:57.1]}
7. Qf3 {[%clk 0:03:00.8]} 7... Nbd7 {[%clk 0:02:55.4]} 8. O-O-O {[%clk
0:03:00.5]} 8... Qc7 {[%clk 0:02:53.6]} 9. g4 {[%clk 0:02:58.4]} 9... b5 {[%clk
0:02:51.9]} 10. a3 {[%clk 0:02:56]} 10... Bb7 {[%clk 0:02:50.3]} 11. Bd3 {[%clk
0:02:55.8]} 11... Ne5 {[%clk 0:02:47.4]} 12. Qg3 {[%clk 0:02:55.3]} 12... Nxd3+
{[%clk 0:02:45.8]} 13. cxd3 {[%clk 0:02:26.5]} 13... Be7 {[%clk 0:02:38.4]} 14.
Be3 {[%clk 0:02:06.1]} 14... O-O {[%clk 0:02:24.3]} 15. Kb1 {[%clk 0:02:03.7]}
15... Rac8 {[%clk 0:01:42.3]} 16. h4 {[%clk 0:02:00.9]} 16... d5 {[%clk
0:01:39.5]} 17. Bf4 {[%clk 0:01:30.9]} 17... Qb6 {[%clk 0:01:31.7]} 18. Nc2
{[%clk 0:00:31.9]} 18... dxe4 {[%clk 0:01:21.8]} 19. dxe4 {[%clk 0:00:17.3]}
19... Nxe4 {[%clk 0:01:21.3]} 0-1

[Event "Late-Titled-Tuesday-Blitz-June-18-2024"]
[Site "Chess.com"]
[Date "2024.06.18"]
[Round "7"]
[White "rionelG"]
[Black "Rawnsdale"]
[Result "1-0"]
[WhiteElo "2355"]
[BlackElo "2457"]
[TimeControl "180+1"]
[EndTime "15:17:51 PDT"]
[Termination "rionelG won by resignation"]

1. e4 {[%clk 0:02:59.7]} 1... c6 {[%clk 0:02:58.6]} 2. d4 {[%clk 0:02:59.3]}
2... d5 {[%clk 0:02:59.5]} 3. e5 {[%clk 0:03:00]} 3... c5 {[%clk 0:02:58.9]} 4.
dxc5 {[%clk 0:02:59.3]} 4... e6 {[%clk 0:02:59.3]} 5. a3 {[%clk 0:02:58.5]} 5...
Bxc5 {[%clk 0:02:59.4]} 6. Qg4 {[%clk 0:02:58.3]} 6... Ne7 {[%clk 0:02:59.4]} 7.
Qxg7 {[%clk 0:02:54.9]} 7... Rg8 {[%clk 0:02:59.5]} 8. Qxh7 {[%clk 0:02:55.2]}
8... Nbc6 {[%clk 0:02:54.1]} 9. Nf3 {[%clk 0:02:54.3]} 9... Qb6 {[%clk
0:02:41.2]} 10. Nc3 {[%clk 0:02:35.6]} 10... Bxf2+ {[%clk 0:02:39.1]} 11. Kd1
{[%clk 0:02:35.7]} 11... Bd4 {[%clk 0:02:35.9]} 12. Nb5 {[%clk 0:02:29.1]} 12...
Bxe5 {[%clk 0:02:19.8]} 13. Nxe5 {[%clk 0:02:17.1]} 13... Nxe5 {[%clk
0:02:18.3]} 14. Bf4 {[%clk 0:02:17.2]} 14... a6 {[%clk 0:02:06.1]} 15. Bxe5
{[%clk 0:02:07.8]} 15... axb5 {[%clk 0:02:02.8]} 16. Bf6 {[%clk 0:02:05.7]}
16... Rg6 {[%clk 0:01:53.9]} 17. Bd3 {[%clk 0:02:04.3]} 17... Rxf6 {[%clk
0:01:51.5]} 18. Qh8+ {[%clk 0:02:04]} 18... Ng8 {[%clk 0:01:50.8]} 19. Qxg8+
{[%clk 0:02:04.4]} 19... Ke7 {[%clk 0:01:50.9]} 20. Qg5 {[%clk 0:02:03.8]} 20...
Qd4 {[%clk 0:01:38.9]} 21. Rf1 {[%clk 0:01:57.6]} 21... Qxb2 {[%clk 0:01:29.2]}
22. Kd2 {[%clk 0:01:57.3]} 22... Ra6 {[%clk 0:01:05.9]} 23. Rab1 {[%clk
0:01:56.3]} 23... Qd4 {[%clk 0:00:57.4]} 24. Rb4 {[%clk 0:01:56.3]} 24... Qxb4+
{[%clk 0:00:24.3]} 25. axb4 {[%clk 0:01:55.3]} 25... e5 {[%clk 0:00:25.2]} 26.
Bxb5 {[%clk 0:01:39]} 26... Re6 {[%clk 0:00:20.5]} 27. Be2 {[%clk 0:01:35.9]}
27... e4 {[%clk 0:00:16.5]} 28. Bg4 {[%clk 0:01:31.7]} 28... e3+ {[%clk
0:00:16.8]} 29. Ke2 {[%clk 0:01:29.3]} 29... Rc6 {[%clk 0:00:16.9]} 30. Rxf6
{[%clk 0:01:27.7]} 30... Rxf6 {[%clk 0:00:16.7]} 31. Bxc8 {[%clk 0:01:27.1]} 1-0

[Event "Late-Titled-Tuesday-Blitz-June-18-2024"]
[Site "Chess.com"]
[Date "2024.06.18"]
[Round "7"]
[White "legendisback1"]
[Black "Dolphin_2010"]
[Result "0-1"]
[WhiteElo "2996"]
[BlackElo "2808"]
[TimeControl "180+1"]
[EndTime "15:17:54 PDT"]
[Termination "Dolphin_2010 won by resignation"]

1. c4 {[%clk 0:02:56.8]} 1... c6 {[%clk 0:02:44.9]} 2. Nf3 {[%clk 0:02:54.1]}
2... d5 {[%clk 0:02:44.2]} 3. e3 {[%clk 0:02:54.6]} 3... Nf6 {[%clk 0:02:43.4]}
4. Nc3 {[%clk 0:02:54]} 4... g6 {[%clk 0:02:42.3]} 5. d4 {[%clk 0:02:53.4]} 5...
Bg7 {[%clk 0:02:42.1]} 6. Be2 {[%clk 0:02:53.1]} 6... O-O {[%clk 0:02:42.7]} 7.
O-O {[%clk 0:02:49.4]} 7... Bg4 {[%clk 0:02:42.8]} 8. cxd5 {[%clk 0:02:46.6]}
8... cxd5 {[%clk 0:02:42.6]} 9. Qb3 {[%clk 0:02:47.2]} 9... b6 {[%clk
0:02:41.3]} 10. Bd2 {[%clk 0:02:45.4]} 10... Nc6 {[%clk 0:02:38.9]} 11. Rfc1
{[%clk 0:02:45.4]} 11... Na5 {[%clk 0:02:37.4]} 12. Qd1 {[%clk 0:02:44.6]} 12...
Bxf3 {[%clk 0:02:32.4]} 13. Bxf3 {[%clk 0:02:44.6]} 13... e6 {[%clk 0:02:29.1]}
14. Be2 {[%clk 0:02:33.4]} 14... Nc4 {[%clk 0:02:14.6]} 15. Bxc4 {[%clk
0:02:18.4]} 15... dxc4 {[%clk 0:02:15.5]} 16. Qa4 {[%clk 0:02:19.1]} 16... Rc8
{[%clk 0:02:04]} 17. Qxa7 {[%clk 0:01:47.4]} 17... e5 {[%clk 0:02:02.3]} 18. Ne2
{[%clk 0:01:44.9]} 18... exd4 {[%clk 0:01:26.3]} 19. Rxc4 {[%clk 0:01:45.8]}
19... Rxc4 {[%clk 0:01:25]} 20. Nxd4 {[%clk 0:01:44.3]} 20... Ne4 {[%clk
0:01:21]} 21. Be1 {[%clk 0:01:40.5]} 21... Bxd4 {[%clk 0:01:13.2]} 22. exd4
{[%clk 0:01:41.4]} 22... Qxd4 {[%clk 0:01:07.4]} 23. Qe7 {[%clk 0:01:32.2]}
23... Rc2 {[%clk 0:00:59.9]} 24. Qh4 {[%clk 0:01:24.9]} 24... Re2 {[%clk
0:00:48.7]} 25. h3 {[%clk 0:00:59.7]} 25... Qxb2 {[%clk 0:00:39.8]} 26. Rd1
{[%clk 0:00:59.2]} 26... Qf6 {[%clk 0:00:40.1]} 27. Qh6 {[%clk 0:00:55.8]} 27...
Rxe1+ {[%clk 0:00:39.1]} 0-1

[Event "Late-Titled-Tuesday-Blitz-June-18-2024"]
[Site "Chess.com"]
[Date "2024.06.18"]
[Round "7"]
[White "carloseduar100"]
[Black "dianamirza"]
[Result "1-0"]
[WhiteElo "2248"]
[BlackElo "1793"]
[TimeControl "180+1"]
[EndTime "15:17:54 PDT"]
[Termination "carloseduar100 won by resignation"]

1. g3 {[%clk 0:03:00.9]} 1... d5 {[%clk 0:02:36.2]} 2. Bg2 {[%clk 0:03:00.3]}
2... c6 {[%clk 0:02:36]} 3. d4 {[%clk 0:03:00.4]} 3... g6 {[%clk 0:02:36.9]} 4.
c3 {[%clk 0:03:00.2]} 4... Bg7 {[%clk 0:02:37.5]} 5. Nf3 {[%clk 0:03:00.1]} 5...
Nf6 {[%clk 0:02:37.5]} 6. O-O {[%clk 0:03:01]} 6... O-O {[%clk 0:02:38.4]} 7.
Nbd2 {[%clk 0:03:01.3]} 7... Bg4 {[%clk 0:02:39.1]} 8. Re1 {[%clk 0:03:01.9]}
8... Bxf3 {[%clk 0:02:39.4]} 9. Bxf3 {[%clk 0:02:59.9]} 9... Nbd7 {[%clk
0:02:39.5]} 10. e4 {[%clk 0:02:59.4]} 10... dxe4 {[%clk 0:02:36.1]} 11. Nxe4
{[%clk 0:03:00.3]} 11... Nxe4 {[%clk 0:02:35]} 12. Rxe4 {[%clk 0:02:57.6]} 12...
e5 {[%clk 0:02:32.5]} 13. Bg2 {[%clk 0:02:24.2]} 13... f5 {[%clk 0:02:30.5]} 14.
Re2 {[%clk 0:02:21]} 14... e4 {[%clk 0:02:30.9]} 15. h4 {[%clk 0:02:19.4]} 15...
Nb6 {[%clk 0:02:22.3]} 16. Bg5 {[%clk 0:02:15.3]} 16... Qd6 {[%clk 0:02:14.2]}
17. Qb3+ {[%clk 0:02:14.3]} 17... Kh8 {[%clk 0:02:12.4]} 18. Rd1 {[%clk
0:02:14.8]} 18... Rab8 {[%clk 0:02:09.9]} 19. Bf4 {[%clk 0:02:07.1]} 19... Qd5
{[%clk 0:01:59.2]} 20. Bxb8 {[%clk 0:02:05]} 20... Rxb8 {[%clk 0:01:58.4]} 21.
Qxd5 {[%clk 0:02:01.2]} 21... Nxd5 {[%clk 0:01:59.3]} 22. f3 {[%clk 0:01:56.1]}
22... exf3 {[%clk 0:01:35.5]} 23. Bxf3 {[%clk 0:01:54.5]} 23... Bf6 {[%clk
0:01:34.7]} 24. Rde1 {[%clk 0:01:50.6]} 24... Kg7 {[%clk 0:01:34.2]} 25. Re8
{[%clk 0:01:47.7]} 25... Rxe8 {[%clk 0:01:32.6]} 26. Rxe8 {[%clk 0:01:46.7]}
26... Kf7 {[%clk 0:01:26.9]} 27. Rb8 {[%clk 0:01:44]} 27... f4 {[%clk
0:00:39.2]} 28. Rxb7+ {[%clk 0:01:40.9]} 28... Ke6 {[%clk 0:00:35.1]} 29. Bxd5+
{[%clk 0:01:36.7]} 29... cxd5 {[%clk 0:00:33.8]} 30. gxf4 {[%clk 0:01:36.7]}
30... Kf5 {[%clk 0:00:33.8]} 31. Rxh7 {[%clk 0:01:34.8]} 31... Kxf4 {[%clk
0:00:33.4]} 32. Kg2 {[%clk 0:01:30.7]} 32... Ke3 {[%clk 0:00:31.5]} 33. Rxa7
{[%clk 0:01:29.8]} 33... Bxh4 {[%clk 0:00:30.9]} 34. Rb7 {[%clk 0:01:19.8]}
34... Kd3 {[%clk 0:00:29.6]} 35. a4 {[%clk 0:01:19.3]} 1-0

[Event "Late-Titled-Tuesday-Blitz-June-18-2024"]
[Site "Chess.com"]
[Date "2024.06.18"]
[Round "7"]
[White "Zampronha1971"]
[Black "Alina_Gumerovna"]
[Result "1-0"]
[WhiteElo "2401"]
[BlackElo "2205"]
[TimeControl "180+1"]
[EndTime "15:18:03 PDT"]
[Termination "Zampronha1971 won by resignation"]

1. e4 {[%clk 0:03:00.9]} 1... e5 {[%clk 0:02:59.1]} 2. Nf3 {[%clk 0:03:00.9]}
2... Nf6 {[%clk 0:02:59.2]} 3. d4 {[%clk 0:03:01.7]} 3... Nxe4 {[%clk
0:02:58.5]} 4. Bd3 {[%clk 0:03:01.5]} 4... d5 {[%clk 0:02:57.7]} 5. Nxe5 {[%clk
0:03:01.4]} 5... Nd7 {[%clk 0:02:57.8]} 6. Nxd7 {[%clk 0:03:01.2]} 6... Bxd7
{[%clk 0:02:58.7]} 7. O-O {[%clk 0:03:01.3]} 7... Bd6 {[%clk 0:02:58.7]} 8. c4
{[%clk 0:03:01.1]} 8... c6 {[%clk 0:02:56.8]} 9. Nc3 {[%clk 0:03:01]} 9... Nxc3
{[%clk 0:02:56.2]} 10. bxc3 {[%clk 0:03:01.9]} 10... O-O {[%clk 0:02:55.4]} 11.
cxd5 {[%clk 0:03:01.1]} 11... cxd5 {[%clk 0:02:55.4]} 12. Qh5 {[%clk 0:03:01.1]}
12... f5 {[%clk 0:02:43.7]} 13. Qf3 {[%clk 0:02:59.9]} 13... Be6 {[%clk
0:02:28]} 14. Bf4 {[%clk 0:02:58.2]} 14... Qd7 {[%clk 0:02:26]} 15. Rfe1 {[%clk
0:02:56.8]} 15... Rac8 {[%clk 0:02:22.6]} 16. Bxd6 {[%clk 0:02:52.1]} 16... Qxd6
{[%clk 0:02:20.7]} 17. Bc2 {[%clk 0:02:53]} 17... Qc6 {[%clk 0:01:13.9]} 18. Bb3
{[%clk 0:02:48.5]} 18... Rcd8 {[%clk 0:00:52.8]} 19. Re5 {[%clk 0:02:38.7]}
19... Rf6 {[%clk 0:00:33.5]} 20. Rae1 {[%clk 0:02:36.8]} 20... Rd6 {[%clk
0:00:33.3]} 21. h3 {[%clk 0:02:33.6]} 21... b5 {[%clk 0:00:29.4]} 22. Rxe6
{[%clk 0:02:03.7]} 22... Rfxe6 {[%clk 0:00:15.2]} 23. Rxe6 {[%clk 0:02:03]}
23... Rxe6 {[%clk 0:00:16.1]} 24. Bxd5 {[%clk 0:02:02.6]} 24... Qd6 {[%clk
0:00:01.6]} 25. Qxf5 {[%clk 0:01:58.8]} 25... Kh8 {[%clk 0:00:01.4]} 26. Qxe6
{[%clk 0:01:57.3]} 26... Qd8 {[%clk 0:00:01.7]} 27. a3 {[%clk 0:01:50.4]} 27...
a5 {[%clk 0:00:01.7]} 28. g3 {[%clk 0:01:49]} 28... b4 {[%clk 0:00:01.8]} 29.
cxb4 {[%clk 0:01:48.2]} 29... axb4 {[%clk 0:00:02.7]} 30. axb4 {[%clk
0:01:48.5]} 30... Qb8 {[%clk 0:00:03.5]} 31. Kg2 {[%clk 0:01:47.2]} 31... Qd8
{[%clk 0:00:02.4]} 32. b5 {[%clk 0:01:44.4]} 32... Qf8 {[%clk 0:00:03.3]} 33. b6
{[%clk 0:01:42]} 33... Qb8 {[%clk 0:00:04.2]} 34. Qg8+ {[%clk 0:01:40.2]} 1-0

[Event "Late-Titled-Tuesday-Blitz-June-18-2024"]
[Site "Chess.com"]
[Date "2024.06.18"]
[Round "7"]
[White "aexmi"]
[Black "AleksandraMilovic"]
[Result "1-0"]
[WhiteElo "2277"]
[BlackElo "2044"]
[TimeControl "180+1"]
[EndTime "15:18:05 PDT"]
[Termination "aexmi won by resignation"]

1. d4 {[%clk 0:02:50]} 1... d5 {[%clk 0:02:56.9]} 2. Bf4 {[%clk 0:02:50.2]} 2...
c5 {[%clk 0:02:50.8]} 3. e3 {[%clk 0:02:50.2]} 3... Nc6 {[%clk 0:02:47.1]} 4.
Nf3 {[%clk 0:02:50.3]} 4... cxd4 {[%clk 0:02:44.7]} 5. exd4 {[%clk 0:02:50.2]}
5... f6 {[%clk 0:02:45.1]} 6. c3 {[%clk 0:02:45.5]} 6... g5 {[%clk 0:02:43.1]}
7. Bg3 {[%clk 0:02:39.4]} 7... h5 {[%clk 0:02:41.8]} 8. h4 {[%clk 0:02:36.4]}
8... g4 {[%clk 0:02:41]} 9. Nfd2 {[%clk 0:02:36.1]} 9... e5 {[%clk 0:02:39.5]}
10. dxe5 {[%clk 0:02:32.3]} 10... fxe5 {[%clk 0:02:36.9]} 11. Bb5 {[%clk
0:02:32.1]} 11... Bd6 {[%clk 0:02:28.2]} 12. O-O {[%clk 0:02:28.6]} 12... Nf6
{[%clk 0:02:24.5]} 13. Re1 {[%clk 0:02:28.6]} 13... e4 {[%clk 0:02:16]} 14. Bxd6
{[%clk 0:02:26.3]} 14... Qxd6 {[%clk 0:02:09.1]} 15. Nxe4 {[%clk 0:02:23.5]}
15... Nxe4 {[%clk 0:01:54.9]} 16. Rxe4+ {[%clk 0:02:22.9]} 16... Kf7 {[%clk
0:01:51.5]} 17. Bxc6 {[%clk 0:02:05.7]} 17... bxc6 {[%clk 0:01:45.8]} 18. Qd4
{[%clk 0:02:02.6]} 18... Bf5 {[%clk 0:01:41]} 19. Re3 {[%clk 0:01:47.2]} 19...
Rhe8 {[%clk 0:01:34.7]} 20. Nd2 {[%clk 0:01:43.5]} 20... c5 {[%clk 0:01:29.2]}
21. Nc4 {[%clk 0:01:20.6]} 21... Qc6 {[%clk 0:00:20.7]} 22. Ne5+ {[%clk
0:01:17.9]} 22... Rxe5 {[%clk 0:00:21.1]} 23. Qxe5 {[%clk 0:01:17.7]} 23... Kg6
{[%clk 0:00:14.2]} 24. Rae1 {[%clk 0:01:12.5]} 24... Rd8 {[%clk 0:00:10.5]} 25.
Qe7 {[%clk 0:01:12]} 25... Qd6 {[%clk 0:00:09.3]} 26. Qg5+ {[%clk 0:01:11.5]}
1-0

[Event "Late-Titled-Tuesday-Blitz-June-18-2024"]
[Site "Chess.com"]
[Date "2024.06.18"]
[Round "7"]
[White "GasconJR"]
[Black "Mysterio47"]
[Result "0-1"]
[WhiteElo "2649"]
[BlackElo "2839"]
[TimeControl "180+1"]
[EndTime "15:18:06 PDT"]
[Termination "Mysterio47 won on time"]

1. e4 {[%clk 0:03:00.9]} 1... d6 {[%clk 0:03:00.9]} 2. d4 {[%clk 0:03:00]} 2...
Nf6 {[%clk 0:03:01.8]} 3. Nc3 {[%clk 0:03:00.1]} 3... e6 {[%clk 0:03:02.7]} 4.
f4 {[%clk 0:02:58.7]} 4... Nc6 {[%clk 0:03:02.7]} 5. Nf3 {[%clk 0:02:57.5]} 5...
d5 {[%clk 0:03:03.3]} 6. e5 {[%clk 0:02:55.6]} 6... Ne4 {[%clk 0:03:03.9]} 7.
Bd3 {[%clk 0:02:56]} 7... Bb4 {[%clk 0:03:04.5]} 8. O-O {[%clk 0:02:55.1]} 8...
Nxc3 {[%clk 0:03:02.4]} 9. bxc3 {[%clk 0:02:55]} 9... Bxc3 {[%clk 0:03:03.3]}
10. Rb1 {[%clk 0:02:29.4]} 10... Bxd4+ {[%clk 0:03:03]} 11. Nxd4 {[%clk
0:02:27.8]} 11... Nxd4 {[%clk 0:03:03.9]} 12. Qg4 {[%clk 0:02:24.9]} 12... g6
{[%clk 0:03:02.5]} 13. Be3 {[%clk 0:02:23.8]} 13... h5 {[%clk 0:03:00.5]} 14.
Qd1 {[%clk 0:02:19.6]} 14... Nf5 {[%clk 0:02:57]} 15. Bf2 {[%clk 0:02:18.8]}
15... b6 {[%clk 0:02:55.2]} 16. a4 {[%clk 0:01:47.4]} 16... c5 {[%clk
0:02:53.1]} 17. a5 {[%clk 0:01:44.3]} 17... Bd7 {[%clk 0:02:50.1]} 18. Qe2
{[%clk 0:01:36.5]} 18... Ne7 {[%clk 0:02:45]} 19. c4 {[%clk 0:01:32.7]} 19... d4
{[%clk 0:02:39.7]} 20. Bh4 {[%clk 0:01:31.6]} 20... Qc7 {[%clk 0:02:36.3]} 21.
Bf6 {[%clk 0:01:17.6]} 21... Rg8 {[%clk 0:02:28.2]} 22. axb6 {[%clk 0:01:15.3]}
22... axb6 {[%clk 0:02:26.6]} 23. Ra1 {[%clk 0:01:16.2]} 23... Qb7 {[%clk
0:02:13.3]} 24. Rxa8+ {[%clk 0:01:07.7]} 24... Qxa8 {[%clk 0:02:13.2]} 25. Qb2
{[%clk 0:01:08.4]} 25... Nc8 {[%clk 0:02:03.8]} 26. Ra1 {[%clk 0:01:07]} 26...
Qb7 {[%clk 0:02:03.2]} 27. Qe2 {[%clk 0:00:36.5]} 27... Bc6 {[%clk 0:01:59.2]}
28. h4 {[%clk 0:00:35.7]} 28... Kd7 {[%clk 0:01:55.7]} 29. Qf2 {[%clk
0:00:08.1]} 29... Ne7 {[%clk 0:01:51.2]} 30. Qg3 {[%clk 0:00:07.8]} 30... Ra8
{[%clk 0:01:47.9]} 31. Re1 {[%clk 0:00:08.2]} 31... Ra3 {[%clk 0:01:47.2]} 32.
Qg5 {[%clk 0:00:04.9]} 32... Rb3 {[%clk 0:01:46.9]} 33. Bxe7 {[%clk 0:00:04.7]}
33... Rxd3 {[%clk 0:01:46.5]} 34. Bf8 {[%clk 0:00:04.6]} 34... Rd2 {[%clk
0:01:39.9]} 35. g3 {[%clk 0:00:01.3]} 35... Kc8 {[%clk 0:01:36.4]} 0-1